bitfinex-derivatives/quotes_BTCF0:USTF0_20240917
["timestamp","ask_amount","ask_price","bid_price","bid_amount"]
[1726579660421,0.02268443,59377.0,59376.0,0.084213]
[1726579660623,0.3608,59386.0,59376.0,0.084213]
[1726579660624,0.16,59381.0,59376.0,0.0004]
[1726579660923,0.16,59380.0,59377.0,0.084611]
[1726579661115,0.16,59380.0,59377.0,0.084211]
[1726579661315,0.16,59388.0,59377.0,1.10524]
[1726579661526,0.16,59388.0,59376.0,0.0004]
[1726579661527,0.16,59388.0,59387.0,0.3612]
[1726579662321,0.16,59391.0,59389.0,0.084194]
[1726579662523,0.084194,59390.0,59387.0,0.3612]
[1726579662826,0.084194,59390.0,59384.0,0.00252592]
[1726579662827,0.244596,59388.0,59384.0,0.00252592]
[1726579663027,0.3612,59385.0,59384.0,0.02524592]
[1726579663327,0.3612,59385.0,59384.0,0.00252592]
[1726579663534,0.0004,59385.0,59384.0,0.44752692]
[1726579664228,0.0044,59385.0,59384.0,0.44752692]
[1726579664530,0.0084,59385.0,59384.0,0.60752692]
[1726579664722,0.0084,59385.0,59384.0,1.71272692]
[1726579664723,0.0044,59385.0,59384.0,1.71272692]
[1726579665023,0.0044,59385.0,59384.0,1.55272692]
[1726579666533,0.0014,59385.0,59384.0,0.96572692]
[1726579666725,0.0014,59385.0,59384.0,1.56572692]
[1726579666925,0.0014,59385.0,59384.0,0.96572692]
[1726579667127,0.0004,59385.0,59384.0,1.56072692]
[1726579667727,0.0004,59385.0,59384.0,1.55672692]
[1726579667932,0.16,59395.0,59394.0,0.084187]
[1726579668232,0.132881,59399.0,59394.0,0.084187]
[1726579668233,0.16,59399.0,59394.0,0.0004]
[1726579668429,0.16,59399.0,59398.0,0.084582]
[1726579669633,0.244181,59399.0,59398.0,0.0004]
[1726579669827,0.084187,59394.0,59390.0,0.084192]
[1726579670023,0.084194,59390.0,59386.0,0.084198]
[1726579670229,0.1604,59387.0,59386.0,0.084198]
[1726579670433,0.16,59387.0,59386.0,0.084198]
[1726579671425,0.007,59387.0,59386.0,0.084198]
[1726579673737,0.004,59387.0,59384.0,0.38579494]
[1726579673933,0.0004,59385.0,59384.0,0.46751594]
[1726579675043,0.0004,59385.0,59384.0,0.47251594]
[1726579675540,0.0004,59385.0,59384.0,0.47451594]
[1726579677237,0.0004,59385.0,59384.0,0.55871694]
[1726579678643,0.0004,59385.0,59384.0,0.55471694]
[1726579678844,0.0004,59385.0,59384.0,0.55871694]
[1726579680142,0.0004,59385.0,59384.0,0.11371594]
[1726579680442,0.0004,59385.0,59384.0,0.02951494]
[1726579680644,0.0004,59385.0,59384.0,0.11371594]
[1726579680844,0.0846,59385.0,59384.0,0.02951494]
[1726579681347,0.4454,59385.0,59384.0,0.02951494]
[1726579682347,0.0004,59385.0,59384.0,0.11371594]
[1726579683647,0.0004,59385.0,59384.0,0.11071594]
[1726579683848,0.0104,59385.0,59384.0,0.11171594]
[1726579684247,0.0154,59385.0,59384.0,0.10771594]
[1726579684640,0.0054,59385.0,59384.0,0.19391694]
[1726579684951,0.0004,59385.0,59384.0,0.24011694]
[1726579686748,0.0004,59385.0,59384.0,0.23811694]
[1726579687540,0.0004,59385.0,59384.0,0.24011694]
[1726579687739,0.0004,59385.0,59384.0,0.24411694]
[1726579688151,0.0004,59385.0,59384.0,0.24111694]
[1726579688453,0.0004,59385.0,59384.0,0.23811694]
[1726579688951,0.0004,59385.0,59384.0,0.24111694]
[1726579689245,0.0004,59385.0,59384.0,0.11171594]
[1726579689851,0.0004,59385.0,59384.0,0.19591694]
[1726579690146,0.0004,59385.0,59384.0,0.19491694]
[1726579690349,0.0004,59385.0,59384.0,0.28311794]
[1726579691147,0.0004,59385.0,59384.0,0.27911794]
[1726579691346,0.0004,59385.0,59384.0,0.28411794]
[1726579692550,0.0004,59391.0,59390.0,0.168386]
[1726579692754,0.0004,59391.0,59390.0,0.529586]
[1726579693755,0.0483,59394.0,59393.0,0.084189]
[1726579693951,0.0483,59394.0,59393.0,0.084589]
[1726579694152,0.2083,59394.0,59393.0,0.084589]
[1726579695154,0.302487,59394.0,59393.0,0.084589]
[1726579695351,0.2183,59394.0,59393.0,0.084589]
[1726579696354,0.2183,59394.0,59393.0,0.102984]
[1726579697257,0.0583,59394.0,59393.0,0.102984]
[1726579699966,0.2183,59394.0,59393.0,0.102984]
[1726579704654,0.29614882,59394.0,59393.0,0.09268561]
[1726579706660,0.2183,59394.0,59393.0,0.09268561]
[1726579709758,0.302487,59394.0,59393.0,0.09268561]
[1726579710064,0.302487,59394.0,59393.0,0.018795]
[1726579710458,0.5791,59394.0,59383.0,0.36324]
[1726579710756,0.1604,59384.0,59383.0,0.3608]
[1726579710962,0.244601,59384.0,59383.0,0.3608]
[1726579711163,0.291901,59384.0,59383.0,0.3608]
[1726579711360,0.084204,59382.0,59381.0,0.00252568]
[1726579711566,0.084604,59382.0,59381.0,0.02092442]
[1726579711758,0.084604,59382.0,59381.0,0.00252568]
[1726579712165,0.445404,59382.0,59381.0,0.00252568]
[1726579712862,0.3612,59382.0,59378.0,0.084209]
[1726579713057,0.1604,59379.0,59378.0,0.084209]
[1726579713463,0.1604,59379.0,59375.0,0.08674001]
[1726579713657,0.0004,59376.0,59375.0,0.00252601]
[1726579713861,0.0004,59376.0,59371.0,0.33689917]
[1726579714066,0.1604,59372.0,59371.0,0.33689917]
[1726579714961,0.244618,59372.0,59371.0,0.01830119]
[1726579715158,0.244618,59372.0,59366.0,0.445027]
[1726579715358,0.1604,59367.0,59366.0,0.445027]
[1726579715955,0.1604,59367.0,59366.0,0.084227]
[1726579716159,0.1604,59367.0,59366.0,0.445027]
[1726579717262,0.1614,59367.0,59366.0,0.4735361]
[1726579718468,0.1624,59367.0,59366.0,0.4845361]
[1726579718667,0.1624,59367.0,59366.0,0.0395091]
[1726579718871,0.246626,59367.0,59366.0,0.0395091]
[1726579719066,0.246626,59367.0,59366.0,0.0385091]
[1726579719273,0.08423,59364.0,59363.0,0.00252655]
[1726579719582,0.08423,59364.0,59357.0,0.01]
[1726579719583,0.16,59359.0,59357.0,0.01]
[1726579719870,0.134038,59358.0,59357.0,0.01]
[1726579721071,0.135038,59358.0,59357.0,0.02]
[1726579721464,0.135038,59358.0,59357.0,0.03896646]
[1726579722167,0.495838,59358.0,59357.0,0.04296646]
[1726579722575,0.496838,59358.0,59357.0,0.04296646]
[1726579726176,0.4126,59358.0,59357.0,0.04296646]
[1726579726483,0.3632,59358.0,59357.0,0.04296646]
[1726579727970,0.3632,59358.0,59357.0,0.12720646]
[1726579732179,0.3632,59358.0,59357.0,0.04296646]
[1726579732384,0.447438,59358.0,59357.0,0.04296646]
[1726579733184,0.3632,59358.0,59357.0,0.12720646]
[1726579743579,0.447438,59358.0,59357.0,0.12720646]
[1726579744185,0.3632,59358.0,59357.0,0.12720646]
[1726579745782,0.3632,59358.0,59357.0,0.04296646]
[1726579746279,0.447438,59358.0,59357.0,0.04296646]
[1726579747184,0.531676,59358.0,59357.0,0.04296646]
[1726579749491,0.447438,59358.0,59357.0,0.04296646]
[1726579750590,0.531676,59358.0,59357.0,0.04296646]
[1726579751795,0.447438,59358.0,59357.0,0.04296646]
[1726579757603,0.531676,59358.0,59357.0,0.04296646]
[1726579758896,0.615914,59358.0,59357.0,0.03668327]
[1726579759100,0.615914,59358.0,59357.0,0.01771681]
[1726579762501,0.0024,59358.0,59357.0,0.10195681]
[1726579762806,0.3608,59377.0,59359.0,0.084237]
[1726579762999,0.3608,59377.0,59369.0,0.084223]
[1726579763301,0.3608,59377.0,59369.0,0.0004]
[1726579763302,0.5208,59370.0,59369.0,0.0004]
[1726579763899,0.5208,59370.0,59366.0,0.0025267]
[1726579764100,0.0004,59367.0,59360.0,0.0465]
[1726579764303,0.3608,59362.0,59358.0,0.00411681]
[1726579764496,0.1604,59359.0,59358.0,0.00411681]
[1726579764698,0.1604,59359.0,59358.0,0.02251987]
[1726579764999,0.1604,59359.0,59358.0,0.00411681]
[1726579765609,0.1604,59359.0,59358.0,0.02377379]
[1726579765796,0.1604,59359.0,59358.0,0.00511681]
[1726579766804,0.1604,59359.0,59358.0,0.08935481]
[1726579767302,0.1604,59359.0,59358.0,0.09535481]
[1726579767303,0.1614,59359.0,59358.0,0.09535481]
[1726579767606,0.1624,59359.0,59358.0,0.09535481]
[1726579769107,0.1624,59359.0,59358.0,0.01111681]
[1726579769795,0.1624,59359.0,59358.0,0.09535481]
[1726579769993,0.0024,59359.0,59358.0,0.60075481]
[1726579770210,0.0024,59359.0,59358.0,1.20075481]
[1726579770906,0.1624,59359.0,59358.0,1.20075481]
[1726579771110,0.246637,59359.0,59358.0,0.01111681]
[1726579771410,0.330874,59359.0,59358.0,0.01111681]
[1726579771997,0.330874,59359.0,59358.0,0.00642857]
[1726579771998,0.246637,59359.0,59358.0,0.00642857]
[1726579773596,0.330874,59359.0,59358.0,0.00642857]
[1726579773801,0.246637,59359.0,59358.0,0.00642857]
[1726579774710,0.330874,59359.0,59358.0,0.00642857]
[1726579774911,0.246637,59359.0,59358.0,0.00642857]
[1726579775421,0.330874,59359.0,59358.0,0.00642857]
[1726579775715,0.08425,59350.0,59349.0,0.0465]
[1726579776008,0.24505,59350.0,59349.0,0.0465]
[1726579776504,0.24505,59350.0,59348.0,0.0471]
[1726579776704,0.0008,59349.0,59348.0,0.0471]
[1726579776905,0.0008,59349.0,59348.0,0.06606534]
[1726579778007,0.0018,59349.0,59348.0,0.07006534]
[1726579778417,0.087051,59349.0,59348.0,0.07006534]
[1726579778614,0.087051,59349.0,59348.0,0.02296534]
[1726579778814,0.0028,59349.0,59348.0,0.02296534]
[1726579779020,0.087051,59349.0,59348.0,0.02296534]
[1726579785110,0.0028,59349.0,59348.0,0.10721834]
[1726579786126,0.087051,59349.0,59348.0,0.02296534]
[1726579787220,0.094051,59349.0,59347.0,0.00252752]
[1726579787423,0.094051,59349.0,59346.0,0.06678252]
[1726579787424,0.0008,59348.0,59346.0,0.06678252]
[1726579787619,0.0008,59347.0,59346.0,0.06678252]
[1726579787919,0.085053,59348.0,59346.0,0.06678252]
[1726579788224,0.0008,59348.0,59346.0,0.08530208]
[1726579788419,0.0008,59348.0,59347.0,0.084254]
[1726579788607,0.084254,59347.0,59344.0,0.08678439]
[1726579788811,0.1608,59345.0,59344.0,0.08678439]
[1726579789425,0.1608,59345.0,59344.0,0.10539732]
[1726579790314,0.1648,59345.0,59344.0,0.10539732]
[1726579790621,0.249057,59345.0,59344.0,0.02114032]
[1726579790923,0.613857,59345.0,59344.0,0.02114032]
[1726579793124,0.5296,59345.0,59344.0,0.10539832]
[1726579795233,0.5256,59345.0,59344.0,0.10539832]
[1726579795611,0.609857,59345.0,59344.0,0.10539832]
[1726579795911,0.5256,59345.0,59344.0,0.10539832]
[1726579796111,0.5296,59345.0,59344.0,0.10539832]
[1726579796725,0.613857,59345.0,59344.0,0.02114032]
[1726579797117,0.5296,59345.0,59344.0,0.10539832]
[1726579798231,0.1688,59345.0,59344.0,0.10539832]
[1726579799526,0.253057,59345.0,59344.0,0.02114032]
[1726579799716,0.253057,59345.0,59344.0,0.10539832]
[1726579800232,0.1688,59345.0,59344.0,0.10539832]
[1726579801323,0.1688,59345.0,59344.0,0.18965632]
[1726579801324,0.0088,59345.0,59344.0,0.18965632]
[1726579801525,0.0088,59345.0,59344.0,0.15419832]
[1726579801726,0.1688,59345.0,59344.0,0.15419832]
[1726579802121,0.1648,59345.0,59344.0,0.10539832]
[1726579802322,0.084258,59344.0,59338.0,0.084266]
[1726579802533,0.1658,59345.0,59332.0,0.00252804]
[1726579802534,0.084272,59335.0,59332.0,0.00252804]
[1726579802835,0.16,59333.0,59332.0,0.00252804]
[1726579803219,0.244274,59333.0,59332.0,0.00252804]
[1726579803937,0.244274,59333.0,59330.0,0.01859961]
[1726579803938,0.084277,59331.0,59330.0,0.01859961]
[1726579804237,0.084282,59328.0,59324.0,0.3608]
[1726579804430,0.16,59325.0,59324.0,0.3608]
[1726579804831,0.16,59325.0,59324.0,0.445087]
[1726579805239,0.16,59328.0,59327.0,0.084282]
[1726579805543,0.16,59328.0,59324.0,0.3608]
[1726579805544,0.0018,59331.0,59330.0,0.084278]
[1726579805920,0.001,59335.0,59330.0,1.189918]
[1726579806148,0.001,59335.0,59334.0,0.445072]
[1726579806625,0.3608,59345.0,59335.0,0.084271]
[1726579806626,0.16,59336.0,59335.0,0.084271]
[1726579806924,0.16,59336.0,59334.0,0.3608]
[1726579806925,0.16,59341.0,59339.0,0.084264]
[1726579807325,0.3608,59340.0,59334.0,0.3608]
[1726579807523,0.084275,59333.0,59331.0,0.00252808]
[1726579807732,0.0008,59332.0,59331.0,0.00252808]
[1726579807929,0.085075,59332.0,59331.0,0.00252808]
[1726579809120,0.085075,59332.0,59330.0,0.0008]
[1726579809121,0.084277,59331.0,59330.0,0.0008]
[1726579809326,0.245077,59331.0,59330.0,0.0008]
[1726579809732,0.1608,59331.0,59330.0,0.0008]
[1726579810937,0.1618,59331.0,59330.0,0.0008]
[1726579811131,0.246077,59331.0,59330.0,0.0008]
[1726579811323,0.168562,59328.0,59327.0,0.00252836]
[1726579811526,0.084294,59319.0,59315.0,0.0039]
[1726579811836,0.084294,59319.0,59310.0,0.00252909]
[1726579811837,0.5208,59316.0,59310.0,0.00252909]
[1726579812027,0.1608,59311.0,59310.0,0.00252909]
[1726579812530,0.1608,59311.0,59303.0,0.3608]
[1726579812531,0.245105,59311.0,59303.0,0.3608]
[1726579812839,0.0472,59315.0,59297.0,0.3632]
[1726579812840,0.16,59304.0,59297.0,0.3632]
[1726579813034,0.1608,59298.0,59297.0,0.3608]
[1726579813339,0.605924,59298.0,59293.0,0.00252942]
[1726579813650,0.1608,59294.0,59293.0,0.00252942]
[1726579814038,0.2308,59294.0,59293.0,0.00252942]
[1726579814541,0.3608,59305.0,59294.0,0.084329]
[1726579814730,0.23,59311.0,59302.0,0.3608]
[1726579814936,0.0965,59316.0,59314.0,0.084301]
[1726579815235,0.23,59325.0,59311.0,0.31628991]
[1726579815543,0.23,59321.0,59319.0,0.084293]
[1726579816041,0.23,59321.0,59320.0,0.084292]
[1726579816235,0.3742,59330.0,59318.0,0.3608]
[1726579816440,0.3608,59334.0,59325.0,0.3608]
[1726579816635,0.3608,59334.0,59325.0,0.5908]
[1726579816835,0.5908,59334.0,59326.0,0.0454]
[1726579817034,0.5908,59334.0,59331.0,0.084275]
[1726579817229,0.23,59338.0,59331.0,0.3608]
[1726579817540,0.0475,59343.0,59338.0,0.084266]
[1726579817738,0.0475,59343.0,59331.0,0.3608]
[1726579817739,0.23,59340.0,59332.0,0.084274]
[1726579817945,0.2308,59333.0,59332.0,0.084274]
[1726579818845,0.2308,59333.0,59331.0,0.36316]
[1726579819047,0.0008,59332.0,59331.0,0.3608]
[1726579819247,0.0008,59332.0,59331.0,0.445077]
[1726579819646,0.2308,59332.0,59331.0,0.445077]
[1726579820247,0.0008,59332.0,59331.0,0.445077]
[1726579820448,0.2308,59332.0,59331.0,0.445077]
[1726579821135,0.0008,59332.0,59331.0,0.445077]
[1726579821453,0.0018,59332.0,59331.0,0.445077]
[1726579821644,0.2318,59332.0,59331.0,0.445077]
[1726579821947,0.315075,59332.0,59325.0,0.445085]
[1726579822148,0.2308,59326.0,59325.0,0.445085]
[1726579822549,0.2308,59326.0,59325.0,0.4634844]
[1726579822747,0.0008,59326.0,59325.0,0.4634844]
[1726579824543,0.0008,59326.0,59325.0,0.4644844]
[1726579825248,0.0008,59326.0,59325.0,0.4634844]
[1726579825551,0.2318,59326.0,59325.0,0.4644844]
[1726579826355,0.0018,59326.0,59325.0,0.4644844]
[1726579827440,0.0018,59326.0,59325.0,0.4634844]
[1726579827441,0.2308,59326.0,59325.0,0.4634844]
[1726579827641,0.2308,59326.0,59325.0,0.4644844]
[1726579828046,0.2308,59326.0,59325.0,0.1036844]
[1726579828944,0.2318,59326.0,59325.0,0.1026844]
[1726579829850,0.2328,59326.0,59325.0,0.1026844]
[1726579830655,0.2328,59326.0,59312.0,0.3608]
[1726579830656,0.5936,59326.0,59312.0,0.3608]
[1726579830842,0.5936,59326.0,59313.0,0.084302]
[1726579830843,0.23,59314.0,59313.0,0.084302]
[1726579831455,0.23,59318.0,59317.0,0.084297]
[1726579831753,0.23,59318.0,59317.0,0.084697]
[1726579831941,0.23,59323.0,59317.0,0.0004]
[1726579832249,0.23,59323.0,59322.0,0.0004]
[1726579832443,0.314288,59323.0,59322.0,0.0004]
[1726579833045,0.23,59323.0,59322.0,0.084689]
[1726579834457,0.23,59323.0,59322.0,0.0004]
[1726579834653,0.314288,59323.0,59322.0,0.0004]
[1726579835048,0.320288,59323.0,59322.0,0.0004]
[1726579835653,0.236,59323.0,59322.0,0.084689]
[1726579836351,0.236,59323.0,59322.0,0.0004]
[1726579837347,0.236,59323.0,59322.0,0.084689]
[1726579838047,0.006,59323.0,59322.0,0.529778]
[1726579838247,0.006,59323.0,59322.0,0.46289255]
[1726579838747,0.003,59323.0,59322.0,1.05290155]
[1726579838944,0.3608,59331.0,59322.0,0.37860355]
[1726579838945,0.445077,59331.0,59322.0,0.37860355]
[1726579839144,0.23,59323.0,59322.0,0.46289255]
[1726579839348,0.23,59323.0,59322.0,0.46249255]
[1726579839558,0.23,59328.0,59327.0,0.084282]
[1726579839753,0.23,59328.0,59327.0,0.084682]
[1726579839949,0.23,59328.0,59327.0,0.445482]
[1726579840645,0.314281,59328.0,59327.0,0.445482]
[1726579840850,0.23,59328.0,59327.0,0.445482]
[1726579841054,0.006,59331.0,59330.0,0.084278]
[1726579841372,0.006,59331.0,59330.0,0.084678]
[1726579841753,0.090277,59331.0,59330.0,0.084678]
[1726579842055,0.090277,59331.0,59322.0,0.38064355]
[1726579842056,0.3638,59331.0,59322.0,0.38064355]
[1726579842256,0.084292,59321.0,59320.0,0.084292]
[1726579842451,0.2304,59323.0,59319.0,0.02071271]
[1726579842758,0.0004,59323.0,59322.0,0.3612]
[1726579842947,0.0004,59323.0,59322.0,0.445489]
[1726579843147,0.0004,59323.0,59322.0,0.529778]
[1726579843356,0.0004,59323.0,59322.0,0.613667]
[1726579843551,0.006,59331.0,59330.0,0.084278]
[1726579843863,0.317277,59331.0,59330.0,0.0004]
[1726579844055,0.247277,59331.0,59330.0,0.0004]
[1726579844253,0.331554,59331.0,59330.0,0.0004]
[1726579844764,0.247277,59331.0,59330.0,0.0004]
[1726579845255,0.244277,59331.0,59330.0,0.0004]
[1726579845872,0.16,59338.0,59330.0,0.3612]
[1726579846054,0.0039,59345.0,59338.0,0.084267]
[1726579846249,0.16,59353.0,59344.0,0.3612]
[1726579846455,0.16,59353.0,59352.0,0.0004]
[1726579846763,0.16,59353.0,59352.0,0.084247]
[1726579846960,0.2559,59357.0,59355.0,0.084241]
[1726579847156,0.2559,59357.0,59356.0,0.0004]
[1726579847364,0.2071,59357.0,59356.0,0.0004]
[1726579847556,0.29134,59357.0,59356.0,0.0004]
[1726579847764,0.37558,59357.0,59356.0,0.0004]
[1726579848259,0.37558,59357.0,59347.0,0.00252752]
[1726579848260,0.08425,59350.0,59347.0,0.00252752]
[1726579848452,0.0004,59348.0,59347.0,0.00252752]
[1726579849052,0.0004,59348.0,59343.0,0.3608]
[1726579849365,0.0004,59344.0,59343.0,0.44506]
[1726579850157,0.0004,59344.0,59343.0,1.56800479]
[1726579850364,0.028,59348.0,59347.0,0.084254]
[1726579850666,0.0039,59357.0,59347.0,0.50548]
[1726579850868,0.084236,59360.0,59356.0,0.3612]
[1726579851057,0.30791051,59361.0,59356.0,0.3612]
[1726579851058,0.23,59361.0,59356.0,0.3612]
[1726579851263,0.0478,59365.0,59360.0,0.0004]
[1726579851463,0.17949869,59398.0,59363.0,0.084231]
[1726579851464,0.07791051,59364.0,59363.0,0.084231]
[1726579852568,0.07791051,59364.0,59363.0,1.2916678]
[1726579852768,0.07791051,59364.0,59363.0,1.3379678]
[1726579852970,0.07791051,59364.0,59363.0,1.2537368]
[1726579853156,0.0039,59375.0,59364.0,0.50536]
[1726579853353,0.0039,59380.0,59374.0,0.0004]
[1726579853563,0.314204,59382.0,59380.0,0.084207]
[1726579853761,0.3608,59386.0,59381.0,0.0004]
[1726579854068,0.444999,59386.0,59385.0,0.0004]
[1726579854266,0.23,59382.0,59377.0,0.00252612]
[1726579854465,0.44541,59378.0,59377.0,0.00252612]
[1726579855269,0.67541,59378.0,59377.0,0.00252612]
[1726579855659,0.67541,59378.0,59377.0,0.00352612]
[1726579856154,0.2304,59378.0,59377.0,0.00352612]
[1726579856561,0.0144,59378.0,59377.0,0.08773712]
[1726579858161,0.0144,59378.0,59377.0,0.00352612]
[1726579858364,0.09861,59378.0,59377.0,0.00352612]
[1726579858755,0.0144,59378.0,59377.0,0.00352612]
[1726579859470,0.0144,59378.0,59377.0,0.08773712]
[1726579861365,0.0039,59389.0,59388.0,0.084196]
[1726579861663,0.0039,59389.0,59388.0,0.0004]
[1726579861664,0.084194,59389.0,59388.0,0.0004]
[1726579861875,0.23,59391.0,59388.0,0.084596]
[1726579862063,0.0459,59393.0,59390.0,0.0004]
[1726579862365,0.23,59395.0,59392.0,0.0004]
[1726579862566,0.23,59395.0,59390.0,0.0004]
[1726579862765,0.314186,59395.0,59393.0,0.084188]
[1726579863365,0.3608,59394.0,59390.0,0.0004]
[1726579863563,0.2304,59391.0,59390.0,0.084592]
[1726579863765,0.0004,59391.0,59390.0,0.084592]
[1726579864164,0.2304,59391.0,59390.0,0.0004]
[1726579864366,1.780512,59391.0,59390.0,0.0004]
[1726579864677,0.0842,59386.0,59378.0,0.0039]
[1726579864969,1.275393,59391.0,59381.0,0.084206]
[1726579864970,0.23,59383.0,59381.0,0.084206]
[1726579865169,0.445001,59385.0,59369.0,0.0039]
[1726579865170,0.0004,59379.0,59369.0,0.0039]
[1726579865362,0.0004,59379.0,59369.0,0.084223]
[1726579865363,0.2304,59370.0,59369.0,0.084223]
[1726579865564,0.23,59370.0,59369.0,0.084223]
[1726579865766,0.3608,59377.0,59368.0,0.3633264]
[1726579865958,0.0004,59369.0,59368.0,0.4475504]
[1726579866183,0.0004,59369.0,59368.0,0.6775504]
[1726579866370,0.0004,59379.0,59368.0,0.6775504]
[1726579866371,0.0004,59379.0,59368.0,1.9122944]
[1726579866573,0.0004,59379.0,59378.0,0.89042]
[1726579866875,0.0004,59379.0,59378.0,0.80621]
[1726579867675,0.23,59383.0,59382.0,0.084204]
[1726579867970,0.2749,59392.0,59391.0,0.084192]
[1726579868383,0.6357,59392.0,59382.0,0.0004]
[1726579868563,0.675403,59383.0,59382.0,0.0004]
[1726579869374,0.08422,59371.0,59370.0,0.0039]
[1726579869576,0.084223,59369.0,59360.0,0.3608]
[1726579869873,0.084223,59369.0,59355.0,0.0451]
[1726579869874,0.3612,59361.0,59355.0,0.0025269]
[1726579870066,0.3608,59366.0,59355.0,0.0867699]
[1726579870067,0.0004,59356.0,59355.0,0.0867699]
[1726579870377,0.0004,59356.0,59355.0,0.084243]
[1726579871561,0.0004,59356.0,59355.0,0.087243]
[1726579872580,0.0039,59369.0,59368.0,0.084224]
[1726579872779,0.5908,59373.0,59368.0,0.0004]
[1726579873083,0.23,59369.0,59368.0,0.084624]
[1726579873263,0.5908,59373.0,59369.0,0.084221]
[1726579873467,0.5908,59373.0,59370.0,0.0004]
[1726579873879,0.5908,59373.0,59372.0,0.0004]
[1726579874479,0.675017,59373.0,59372.0,0.0004]
[1726579874871,0.680017,59373.0,59372.0,0.0004]
[1726579875078,0.5958,59373.0,59372.0,0.0004]
[1726579875379,0.3658,59373.0,59372.0,0.084618]
[1726579876382,0.0039,59383.0,59382.0,0.084204]
[1726579876679,0.444998,59387.0,59383.0,0.084202]
[1726579876978,0.444998,59387.0,59386.0,0.084599]
[1726579876979,0.3608,59387.0,59386.0,0.084599]
[1726579877176,0.5908,59392.0,59386.0,0.0004]
[1726579877177,0.3608,59391.0,59386.0,0.0004]
[1726579877476,0.3608,59391.0,59384.0,0.3608]
[1726579877477,0.3608,59391.0,59390.0,0.084593]
[1726579877682,0.3608,59391.0,59390.0,0.0004]
[1726579877876,0.3608,59391.0,59390.0,0.084593]
[1726579878081,0.00728,59396.0,59394.0,0.084187]
[1726579878385,0.00728,59396.0,59391.0,0.00252559]
[1726579878386,0.00728,59396.0,59395.0,0.0004]
[1726579878680,0.23728,59396.0,59395.0,0.0004]
[1726579879182,0.00728,59396.0,59395.0,0.084586]
[1726579879682,0.0039,59407.0,59395.0,0.084586]
[1726579879683,0.0039,59407.0,59404.0,0.084173]
[1726579879884,0.3608,59409.0,59406.0,0.0008]
[1726579880081,0.0486,59415.0,59408.0,0.0008]
[1726579880284,0.0039,59423.0,59414.0,0.3616]
[1726579880579,0.1428,59429.0,59410.0,0.00252481]
[1726579880580,0.3608,59415.0,59410.0,0.00252481]
[1726579880878,0.23,59411.0,59410.0,0.00252481]
[1726579881285,0.819123,59411.0,59410.0,0.00252481]
[1726579882287,0.314163,59411.0,59410.0,0.00252481]
[1726579882673,0.674963,59411.0,59410.0,0.00252481]
[1726579882877,0.314163,59411.0,59410.0,0.00252481]
[1726579883178,0.7216,59415.0,59410.0,0.00352481]
[1726579883483,0.7216,59415.0,59414.0,0.0008]
[1726579883484,0.7236,59415.0,59414.0,0.0008]
[1726579883979,0.9516,59415.0,59414.0,0.0008]
[1726579886684,0.9526,59415.0,59414.0,0.0008]
[1726579887280,0.9536,59415.0,59414.0,0.0008]
[1726579888181,0.232,59415.0,59414.0,0.0008]
[1726579888485,0.002,59415.0,59414.0,0.084959]
[1726579889675,0.002,59415.0,59414.0,1.189879]
[1726579890181,0.23,59424.0,59414.0,0.02772625]
[1726579890486,0.23,59424.0,59423.0,0.0008]
[1726579890487,0.314145,59424.0,59423.0,0.0008]
[1726579890987,0.314145,59424.0,59414.0,0.006]
[1726579890988,0.084158,59415.0,59414.0,0.006]
[1726579891173,0.674958,59415.0,59414.0,0.006]
[1726579891376,1.1916,59415.0,59401.0,0.0039]
[1726579891577,1.1916,59415.0,59400.0,0.00642526]
[1726579891578,0.084177,59401.0,59400.0,0.00488526]
[1726579891775,0.314177,59401.0,59400.0,0.00252526]
[1726579891987,1.503394,59401.0,59400.0,0.00252526]
[1726579892493,1.419217,59401.0,59400.0,0.00252526]
[1726579892681,1.33504,59401.0,59391.0,0.00252559]
[1726579892888,0.23,59392.0,59391.0,0.00252559]
[1726579893080,0.23,59396.0,59391.0,0.00252559]
[1726579893280,0.314178,59401.0,59400.0,0.006]
[1726579893580,0.23,59401.0,59400.0,0.0068]
[1726579893783,0.3608,59405.0,59402.0,0.084175]
[1726579893985,0.314165,59410.0,59404.0,0.445772]
[1726579894184,0.3647,59416.0,59404.0,0.0008]
[1726579894185,0.3608,59416.0,59404.0,0.0008]
[1726579894386,0.2308,59415.0,59414.0,0.0008]
[1726579894595,0.314958,59415.0,59414.0,0.0008]
[1726579894791,0.819878,59415.0,59414.0,0.0008]
[1726579894989,0.314958,59415.0,59414.0,0.0008]
[1726579895584,0.314958,59415.0,59414.0,0.0078]
[1726579896477,0.2308,59415.0,59414.0,0.0008]
[1726579897083,0.2308,59415.0,59414.0,0.0068]
[1726579897488,0.314958,59415.0,59414.0,0.0068]
[1726579897896,0.318958,59415.0,59414.0,0.0008]
[1726579898393,0.2308,59415.0,59414.0,0.0008]
[1726579898690,0.2348,59415.0,59414.0,0.0008]
[1726579899396,0.318958,59415.0,59414.0,0.0008]
[1726579899592,1.59258809,59415.0,59404.0,0.0008]
[1726579899794,0.3612,59405.0,59404.0,0.0008]
[1726579900198,0.445372,59405.0,59404.0,0.0008]
[1726579900689,0.445372,59405.0,59394.0,0.01787446]
[1726579900889,0.445372,59405.0,59400.0,0.084178]
[1726579901097,0.3608,59410.0,59401.0,0.00252477]
[1726579901302,0.3608,59410.0,59409.0,0.084566]
[1726579901884,0.3608,59410.0,59409.0,0.0004]
[1726579901885,0.444965,59410.0,59409.0,0.0004]
[1726579902094,1.03409,59410.0,59409.0,0.0004]
[1726579902287,1.46576,59410.0,59401.0,0.00652477]
[1726579902489,0.314576,59402.0,59401.0,0.00652477]
[1726579902691,0.314576,59402.0,59401.0,0.004]